bitfinex-derivatives/quotes_BTCF0:USTF0_20250514
["timestamp","ask_amount","ask_price","bid_price","bid_amount"]
[1747241473283,1.13386714,103300.0,103290.0,0.09468]
[1747241474179,1.13386714,103300.0,103290.0,0.25668]
[1747241474379,1.13586714,103300.0,103290.0,0.25668]
[1747241474588,0.1936192,103280.0,103270.0,0.00193658]
[1747241474787,0.193638,103270.0,103260.0,0.03225256]
[1747241474996,0.626138,103270.0,103260.0,0.06355256]
[1747241475193,0.626138,103270.0,103260.0,0.22555256]
[1747241476495,0.628138,103270.0,103260.0,0.22555256]
[1747241476689,0.80432344,103270.0,103260.0,0.22555256]
[1747241476894,0.83612344,103270.0,103260.0,0.22555256]
[1747241477200,0.651938,103270.0,103260.0,0.22555256]
[1747241477793,0.620138,103270.0,103260.0,0.41920926]
[1747241478493,0.620138,103270.0,103260.0,0.6053947]
[1747241478887,0.620138,103270.0,103260.0,0.41920926]
[1747241479301,0.620138,103270.0,103260.0,0.22555256]
[1747241479594,0.558438,103270.0,103260.0,0.60394214]
[1747241479794,0.558438,103270.0,103260.0,0.60956285]
[1747241480197,0.197638,103270.0,103260.0,0.60956285]
[1747241480398,0.197638,103270.0,103260.0,1.06720108]
[1747241480587,0.197638,103270.0,103260.0,1.25338652]
[1747241480813,0.195638,103270.0,103260.0,1.60022652]
[1747241481997,0.193638,103270.0,103260.0,2.01742652]
[1747241482198,0.193638,103270.0,103260.0,1.76842652]
[1747241482702,0.193638,103270.0,103260.0,1.39705564]
[1747241482905,0.193638,103270.0,103260.0,1.48640108]
[1747241485100,0.193638,103270.0,103260.0,1.48540108]
[1747241485303,0.193638,103270.0,103260.0,1.67158652]
[1747241486204,0.193638,103270.0,103260.0,1.67058652]
[1747241487206,0.193638,103270.0,103260.0,1.67158652]
[1747241487411,0.193638,103270.0,103260.0,1.48540108]
[1747241488207,0.193638,103270.0,103260.0,1.48640108]
[1747241488405,0.554438,103270.0,103260.0,0.16962071]
[1747241488602,0.616938,103270.0,103260.0,0.38490615]
[1747241488802,0.616938,103270.0,103260.0,0.41710615]
[1747241489000,0.616938,103270.0,103260.0,0.41610615]
[1747241489206,0.193638,103270.0,103260.0,1.67078652]
[1747241489812,0.195638,103270.0,103260.0,1.48460108]
[1747241492011,0.193638,103270.0,103260.0,1.48460108]
[1747241492216,0.193638,103270.0,103260.0,1.67078652]
[1747241492704,0.193638,103270.0,103260.0,1.48460108]
[1747241494108,0.193638,103270.0,103260.0,1.67078652]
[1747241494315,0.193638,103270.0,103260.0,1.25358652]
[1747241494908,0.193638,103270.0,103260.0,0.70660108]
[1747241495410,0.257138,103270.0,103260.0,0.70660108]
[1747241495605,0.617938,103270.0,103260.0,0.70660108]
[1747241495804,0.226538,103270.0,103260.0,0.70660108]
[1747241496011,0.193638,103270.0,103260.0,1.25358652]
[1747241496209,0.193638,103270.0,103260.0,1.06740108]
[1747241497214,0.195638,103270.0,103260.0,1.06740108]
[1747241497609,0.197638,103270.0,103260.0,1.06740108]
[1747241498003,0.195638,103270.0,103260.0,1.06740108]
[1747241498211,0.193638,103270.0,103260.0,1.06740108]
[1747241498407,0.193638,103270.0,103260.0,0.70660108]
[1747241498716,0.255038,103270.0,103260.0,1.06740108]
[1747241499015,0.193638,103270.0,103260.0,1.06740108]
[1747241499412,0.224538,103270.0,103260.0,1.06740108]
[1747241500220,0.226538,103270.0,103260.0,1.48460108]
[1747241501116,0.228538,103270.0,103260.0,1.48460108]
[1747241501613,0.226538,103270.0,103260.0,1.48460108]
[1747241501820,0.224538,103270.0,103260.0,1.48460108]
[1747241502719,0.193638,103270.0,103260.0,1.67078652]
[1747241504319,0.193638,103270.0,103260.0,3.17178652]
[1747241504521,0.193638,103270.0,103260.0,3.17278652]
[1747241505308,0.193638,103270.0,103260.0,2.80041564]
[1747241505518,0.193638,103270.0,103260.0,3.17278652]
[1747241506121,0.193638,103270.0,103260.0,2.80041564]
[1747241506421,0.193638,103270.0,103260.0,3.17178652]
[1747241507410,0.226338,103270.0,103260.0,3.17178652]
[1747241507912,0.226338,103270.0,103260.0,3.17078652]
[1747241508112,0.226338,103270.0,103260.0,2.79841564]
[1747241508334,0.226338,103270.0,103260.0,3.17078652]
[1747241509610,0.226338,103270.0,103260.0,1.29841564]
[1747241509817,0.258338,103270.0,103260.0,1.12380108]
[1747241510123,0.258338,103270.0,103260.0,3.17078652]
[1747241510519,0.193638,103270.0,103260.0,3.17078652]
[1747241510823,0.7651608,103280.0,103270.0,0.193638]
[1747241511011,0.259135,103280.0,103270.0,0.47642344]
[1747241511220,0.12241282,103290.0,103280.0,0.048403]
[1747241511518,0.34047708,103300.0,103290.0,0.1936005]
[1747241511821,0.34047708,103300.0,103290.0,1.25438594]
[1747241512018,0.73457708,103300.0,103290.0,0.57862885]
[1747241512327,0.73457708,103300.0,103290.0,0.74062885]
[1747241512516,0.73457708,103300.0,103290.0,0.90212935]
[1747241513026,0.73457708,103300.0,103290.0,0.70852885]
[1747241513226,0.92276252,103300.0,103290.0,0.5792]
[1747241513427,0.92276252,103300.0,103290.0,0.162]
[1747241514525,0.76697708,103300.0,103290.0,0.162]
[1747241514726,0.76897708,103300.0,103290.0,0.162]
[1747241515422,0.77197708,103300.0,103290.0,0.162]
[1747241516125,0.95816252,103300.0,103290.0,0.162]
[1747241516727,0.81126714,103300.0,103290.0,0.162]
[1747241516916,0.6250817,103300.0,103290.0,0.162]
[1747241518524,0.6250817,103300.0,103290.0,0.3556005]
[1747241518824,0.6250817,103300.0,103290.0,0.4828106]
[1747241519017,0.6250817,103300.0,103290.0,0.3860005]
[1747241519327,0.6250817,103300.0,103290.0,0.1924]
[1747241519827,0.6220817,103300.0,103290.0,0.1924]
[1747241520332,0.72016966,103300.0,103290.0,0.1924]
[1747241520530,0.72016966,103300.0,103290.0,0.162]
[1747241520831,0.9063551,103300.0,103290.0,0.162]
[1747241521221,0.72016966,103300.0,103290.0,0.162]
[1747241521429,0.72016966,103300.0,103290.0,0.3870005]
[1747241521623,0.71816966,103300.0,103290.0,0.57318594]
[1747241521933,0.72016966,103300.0,103290.0,0.60378594]
[1747241522120,0.72116966,103300.0,103290.0,0.37958544]
[1747241522343,0.72116966,103300.0,103290.0,0.1934]
[1747241522526,0.72316966,103300.0,103290.0,0.1934]
[1747241523030,0.72216966,103300.0,103290.0,0.1934]
[1747241523221,0.71816966,103300.0,103290.0,0.1934]
[1747241523421,0.72016966,103300.0,103290.0,0.1934]
[1747241524320,0.72016966,103300.0,103290.0,0.162]
[1747241525019,0.72316966,103300.0,103290.0,0.162]
[1747241525224,0.72316966,103300.0,103290.0,0.1928]
[1747241525433,0.72316966,103300.0,103290.0,0.19842071]
[1747241525821,0.72316966,103300.0,103290.0,0.57820665]
[1747241526025,0.72316966,103300.0,103290.0,0.64120665]
[1747241526936,0.52958796,103300.0,103290.0,0.64120665]
[1747241527130,0.72316966,103300.0,103290.0,0.96903131]
[1747241527328,0.72316966,103300.0,103290.0,1.15521675]
[1747241527833,0.72016966,103300.0,103290.0,1.15521675]
[1747241528036,0.72016966,103300.0,103290.0,0.61562071]
[1747241528432,0.71816966,103300.0,103290.0,0.61562071]
[1747241528652,0.71616966,103300.0,103290.0,0.61562071]
[1747241529521,0.72016966,103300.0,103290.0,0.80922121]
[1747241530934,0.72016966,103300.0,103290.0,0.84192121]
[1747241532238,0.6220817,103300.0,103290.0,0.84192121]
[1747241532839,0.2612817,103300.0,103290.0,0.84192121]
[1747241533141,0.2612817,103300.0,103290.0,0.42472121]
[1747241533338,0.2612817,103300.0,103290.0,0.97170665]
[1747241533638,0.2612817,103300.0,103290.0,1.25470219]
[1747241533639,0.004,103300.0,103290.0,1.25470219]
[1747241534142,0.004,103300.0,103290.0,1.36098727]
[1747241534339,0.004,103300.0,103290.0,0.98861639]
[1747241534541,0.004,103300.0,103290.0,1.36098727]
[1747241534731,0.43724668,103310.0,103300.0,0.1935817]
[1747241534931,0.43724668,103310.0,103300.0,0.83436714]
[1747241535131,0.43724668,103310.0,103300.0,0.63556714]
[1747241535336,0.43724668,103310.0,103300.0,0.73237724]
[1747241535826,0.49994668,103310.0,103300.0,0.4836918]
[1747241536029,0.53114668,103310.0,103300.0,0.4846918]
[1747241536442,0.48227276,103310.0,103300.0,0.4846918]
[1747241536643,0.48227276,103310.0,103300.0,0.70277724]
[1747241536827,0.48227276,103310.0,103300.0,0.2262]
[1747241537143,1.3992582,103310.0,103300.0,0.1943]
[1747241537344,0.97307276,103310.0,103300.0,0.162]
[1747241537931,0.97307276,103310.0,103300.0,0.1932]
[1747241538237,0.84907276,103310.0,103300.0,0.57296714]
[1747241538445,0.45707276,103310.0,103300.0,0.60486714]
[1747241538740,0.45807276,103310.0,103300.0,0.4186817]
[1747241540145,0.81887276,103310.0,103300.0,0.4186817]
[1747241540341,0.81787276,103310.0,103300.0,0.4186817]
[1747241540535,0.81787276,103310.0,103300.0,0.1932]
[1747241540733,1.0040582,103310.0,103300.0,0.1932]
[1747241540936,1.0020582,103310.0,103300.0,0.162]
[1747241541341,1.3220582,103310.0,103300.0,0.162]
[1747241541538,1.1120582,103310.0,103300.0,0.162]
[1747241541751,1.1120582,103310.0,103300.0,0.16762071]
[1747241541934,1.1120582,103310.0,103300.0,0.19882071]
[1747241542442,1.0020582,103310.0,103300.0,0.16762071]
[1747241542642,1.0120582,103310.0,103300.0,0.16762071]
[1747241542845,1.4288582,103310.0,103300.0,0.16762071]
[1747241543545,1.3320582,103310.0,103300.0,0.16762071]
[1747241543747,1.45455485,103310.0,103300.0,0.16762071]
[1747241544538,0.1936005,103290.0,103280.0,0.42112]
[1747241544735,1.30138594,103290.0,103280.0,0.45362]
[1747241544947,1.36408594,103290.0,103280.0,0.00392]
[1747241545145,1.36408594,103290.0,103280.0,0.16592]
[1747241545746,1.1779005,103290.0,103280.0,0.16592]
[1747241546051,1.1779005,103290.0,103280.0,0.19942]
[1747241546551,1.1779005,103290.0,103280.0,0.20042]
[1747241547566,1.30039715,103290.0,103280.0,0.19942]
[1747241547846,1.30539715,103290.0,103280.0,0.19842]
[1747241548355,1.30339715,103290.0,103280.0,0.19842]
[1747241548556,1.30739715,103290.0,103280.0,0.19842]
[1747241549452,1.30739715,103290.0,103280.0,0.23052]
[1747241550051,0.38579715,103290.0,103280.0,0.61032464]
[1747241550355,0.38579715,103290.0,103280.0,1.25412956]
[1747241550356,0.12949665,103290.0,103280.0,1.25412956]
[1747241550676,0.10488474,103290.0,103280.0,2.01814955]
[1747241550860,0.10488474,103290.0,103280.0,1.83196411]
[1747241551353,0.09788474,103290.0,103280.0,1.83196411]
[1747241551552,0.29148524,103290.0,103280.0,1.64577867]
[1747241551857,0.29148524,103290.0,103280.0,1.83496411]
[1747241552258,0.29148524,103290.0,103280.0,1.58796411]
[1747241552452,0.29148524,103290.0,103280.0,1.58404411]
[1747241552651,0.29148524,103290.0,103280.0,3.08404411]
[1747241552852,0.1936005,103290.0,103280.0,3.08404411]
[1747241553369,0.1936005,103290.0,103280.0,3.08104411]
[1747241553548,0.1936005,103290.0,103280.0,3.08204411]
[1747241553749,0.1936005,103290.0,103280.0,3.08004411]
[1747241553950,0.1936005,103290.0,103280.0,3.07904411]
[1747241554159,0.1936005,103290.0,103280.0,3.08004411]
[1747241554661,0.1936005,103290.0,103280.0,3.08407411]
[1747241554855,0.1936005,103290.0,103280.0,3.08969482]
[1747241556161,0.1936005,103290.0,103280.0,2.99287483]
[1747241556757,0.1936005,103290.0,103280.0,1.13207483]
[1747241556957,0.5544005,103290.0,103280.0,0.65545071]
[1747241557262,0.6183005,103290.0,103280.0,0.43186991]
[1747241557458,0.6183005,103290.0,103280.0,0.43086991]
[1747241557761,0.6183005,103290.0,103280.0,0.61605535]
[1747241558063,0.2575005,103290.0,103280.0,0.61605535]
[1747241558257,0.1976005,103290.0,103280.0,0.61605535]
[1747241558465,0.1976005,103290.0,103280.0,0.71287483]
[1747241558760,0.5584005,103290.0,103280.0,0.71287483]
[1747241559764,0.2262005,103290.0,103280.0,0.71287483]
[1747241559966,0.2579005,103290.0,103280.0,0.71287483]
[1747241560466,0.2559005,103290.0,103280.0,0.71287483]
[1747241560656,0.2242005,103290.0,103280.0,0.71287483]
[1747241560857,0.2262005,103290.0,103280.0,0.71287483]
[1747241561355,0.2282005,103290.0,103280.0,0.71287483]
[1747241561554,0.004,103290.0,103280.0,0.71287483]
[1747241561775,0.1956005,103290.0,103280.0,0.71287483]
[1747241561956,0.002,103290.0,103280.0,1.25986027]
[1747241562155,0.002,103290.0,103280.0,1.07367483]
[1747241562357,0.1956005,103290.0,103280.0,1.25986027]
[1747241562865,0.002,103290.0,103280.0,2.57367483]
[1747241563067,0.3387889,103300.0,103290.0,0.1936005]
[1747241563258,0.3387889,103300.0,103290.0,1.43907138]
[1747241563458,0.3387889,103300.0,103290.0,0.89208594]
[1747241563658,0.3387889,103300.0,103290.0,0.98889604]
[1747241564166,0.3387889,103300.0,103290.0,1.15089604]
[1747241564467,0.3387889,103300.0,103290.0,1.16072527]
[1747241564854,0.3387889,103300.0,103290.0,1.15089604]
[1747241567070,0.2903894,103300.0,103290.0,1.15089604]
[1747241567453,0.1935978,103300.0,103290.0,1.33708148]
[1747241567667,0.1935978,103300.0,103290.0,1.69788148]
[1747241568376,0.2903579,103310.0,103300.0,0.1935817]
[1747241568557,0.2903579,103310.0,103300.0,0.80386714]
[1747241568758,0.3545579,103310.0,103300.0,0.80386714]
[1747241568958,0.3545579,103310.0,103300.0,0.90067724]
[1747241569157,0.3545579,103310.0,103300.0,0.70187724]
[1747241569456,0.3545579,103310.0,103300.0,0.5156918]
[1747241570466,0.3565579,103310.0,103300.0,0.5156918]
[1747241570652,0.3585579,103310.0,103300.0,0.70187724]
[1747241571168,0.3585579,103310.0,103300.0,0.70749795]
[1747241573571,0.3585579,103310.0,103300.0,0.52131251]
[1747241573868,0.3585579,103310.0,103300.0,0.70749795]
[1747241574469,0.3585579,103310.0,103300.0,0.52131251]
[1747241574669,0.3585579,103310.0,103300.0,0.70749795]
[1747241576973,0.7193579,103310.0,103300.0,0.70749795]
[1747241579915,0.7193579,103310.0,103300.0,0.48961251]
[1747241580287,0.84185455,103310.0,103300.0,0.48961251]
[1747241580995,0.48105455,103310.0,103300.0,0.48961251]
[1747241581300,0.84185455,103310.0,103300.0,0.52271251]
[1747241582592,0.84185455,103310.0,103300.0,0.70889795]
[1747241583688,0.84185455,103310.0,103300.0,0.19922071]
[1747241584189,1.08803999,103310.0,103300.0,0.16762071]
[1747241584384,0.90185455,103310.0,103300.0,0.16762071]
[1747241584579,0.90185455,103310.0,103300.0,0.19782071]
[1747241584785,1.04874993,103310.0,103300.0,0.19782071]
[1747241585377,1.04874993,103310.0,103300.0,0.39140241]
[1747241585576,0.98874993,103310.0,103300.0,0.19782071]
[1747241585779,0.98874993,103310.0,103300.0,0.39140241]
[1747241586082,0.98874993,103310.0,103300.0,0.19782071]
[1747241588083,0.93636721,103310.0,103300.0,0.19782071]
[1747241588392,1.50255265,103310.0,103300.0,0.16762071]
[1747241589281,1.12255265,103310.0,103300.0,0.16762071]
[1747241589675,0.93636721,103310.0,103300.0,0.16762071]
[1747241589881,0.93636721,103310.0,103300.0,0.19772071]
[1747241590284,0.93636721,103310.0,103300.0,0.39130241]
[1747241590586,0.93636721,103310.0,103300.0,0.57748785]
[1747241590786,0.93636721,103310.0,103300.0,0.63858785]
[1747241591698,0.93436721,103310.0,103300.0,0.63858785]
[1747241591905,0.52317241,103310.0,103300.0,0.63858785]
[1747241592087,0.21700931,103310.0,103300.0,1.51338858]
[1747241592483,0.21700931,103310.0,103300.0,1.51751858]
[1747241592683,0.41057231,103310.0,103300.0,1.51751858]
[1747241592897,0.41057231,103310.0,103300.0,3.01751858]
[1747241593294,0.41057231,103310.0,103300.0,3.01851858]
[1747241593487,0.41057231,103310.0,103300.0,3.01951858]
[1747241595097,0.41057231,103310.0,103300.0,2.65771858]
[1747241595298,0.41057231,103310.0,103300.0,3.01751858]
[1747241595507,0.41057231,103310.0,103300.0,3.02051858]
[1747241596001,0.41057231,103310.0,103300.0,3.0323968]
[1747241596212,0.41057231,103310.0,103300.0,2.6151968]
[1747241596407,0.193563,103310.0,103300.0,2.6151968]
[1747241599004,0.193563,103310.0,103300.0,2.42901136]
[1747241599207,0.193563,103310.0,103300.0,2.6151968]
[1747241601695,0.7663225,103320.0,103310.0,0.193563]
[1747241601894,0.002,103320.0,103310.0,0.80554844]
[1747241602090,0.0309,103330.0,103320.0,0.1935443]
[1747241602290,0.1935255,103330.0,103320.0,1.12107978]
[1747241602495,0.1935255,103330.0,103320.0,1.16946398]
[1747241602795,0.1935255,103330.0,103320.0,1.31463017]
[1747241603196,0.1935255,103330.0,103320.0,1.47663017]
[1747241603904,0.1935255,103330.0,103320.0,1.29144473]
[1747241604997,0.1935255,103330.0,103320.0,1.29244473]
[1747241605402,0.1935255,103330.0,103320.0,1.47863017]
[1747241605706,0.1935255,103330.0,103320.0,1.47763017]
[1747241606105,0.1935255,103330.0,103320.0,1.47663017]
[1747241608908,0.1935255,103330.0,103320.0,1.29044473]
[1747241610101,0.2556255,103330.0,103320.0,1.29044473]
[1747241610307,0.2556255,103330.0,103320.0,0.69507509]
[1747241610513,0.2556255,103330.0,103320.0,1.24206053]
[1747241611415,0.2576255,103330.0,103320.0,1.05587509]
[1747241611607,0.2576255,103330.0,103320.0,1.24206053]
[1747241611912,0.2257255,103330.0,103320.0,1.42824597]
[1747241612217,0.004,103330.0,103320.0,1.42824597]
[1747241612403,0.001,103340.0,103330.0,0.1935255]
[1747241612708,0.001,103340.0,103330.0,2.30391094]
[1747241612916,0.1945068,103340.0,103330.0,2.30391094]
[1747241613214,0.1945068,103340.0,103330.0,2.56269293]
[1747241614018,0.6186068,103340.0,103330.0,1.9189255]
[1747241614213,0.6499068,103340.0,103330.0,2.10511094]
[1747241614614,0.6499068,103340.0,103330.0,0.60511094]
[1747241615013,0.6499068,103340.0,103330.0,0.57271094]
[1747241615316,0.6499068,103340.0,103330.0,0.57471094]
[1747241615811,0.6509068,103340.0,103330.0,0.39414621]
[1747241616111,0.6519068,103340.0,103330.0,0.39214621]
[1747241617313,0.6519068,103340.0,103330.0,0.57833165]
[1747241618019,0.6519068,103340.0,103330.0,0.60853165]
[1747241620520,0.6519068,103340.0,103330.0,0.16762071]
[1747241621320,0.83809224,103340.0,103330.0,0.16762071]
[1747241621523,0.6519068,103340.0,103330.0,0.16762071]
[1747241622119,0.7419068,103340.0,103330.0,0.16762071]
[1747241625122,0.92809224,103340.0,103330.0,0.16762071]
[1747241627123,1.09809224,103340.0,103330.0,0.16762071]
[1747241628127,0.88809224,103340.0,103330.0,0.16762071]
[1747241629325,0.7019068,103340.0,103330.0,0.16762071]
[1747241630625,0.7019068,103340.0,103330.0,0.19912071]
[1747241631130,0.6519068,103340.0,103330.0,0.57883165]
[1747241631518,0.6519068,103340.0,103330.0,0.64013165]
[1747241632027,0.2911068,103340.0,103330.0,0.64013165]
[1747241632928,0.2891068,103340.0,103330.0,0.64013165]
[1747241633124,0.2911068,103340.0,103330.0,0.64013165]
[1747241633518,0.6509068,103340.0,103330.0,0.64013165]
[1747241633724,0.6509068,103340.0,103330.0,0.60993165]
[1747241633926,0.6509068,103340.0,103330.0,0.42374621]
[1747241634130,0.6519068,103340.0,103330.0,0.42374621]
[1747241634928,0.6519068,103340.0,103330.0,0.45454621]
[1747241636621,0.2598068,103340.0,103330.0,0.64073165]
[1747241637017,0.1965068,103340.0,103330.0,0.64073165]
[1747241638718,0.1965068,103340.0,103330.0,0.64492165]
[1747241638919,0.1965068,103340.0,103330.0,1.00572165]
[1747241640026,0.1965068,103340.0,103330.0,1.10249428]
[1747241640631,0.1965068,103340.0,103330.0,1.51969428]
[1747241640828,0.003,103340.0,103330.0,1.51969428]
[1747241641034,0.1935068,103340.0,103330.0,1.76160128]
[1747241642131,0.1935068,103340.0,103330.0,1.57541584]
[1747241642434,0.1935068,103340.0,103330.0,1.66482928]
[1747241643427,0.14657698,103350.0,103330.0,1.47130378]
[1747241643642,0.34008098,103350.0,103340.0,0.80419224]
[1747241643932,0.4393117,103360.0,103350.0,0.1934881]
[1747241643933,0.1988694,103360.0,103350.0,0.1934881]
[1747241644140,0.1988694,103360.0,103350.0,1.18355898]
[1747241644936,0.1988694,103360.0,103350.0,1.28032693]
[1747241645135,0.1988694,103360.0,103350.0,0.90795605]
[1747241645435,0.1988694,103360.0,103350.0,1.09414149]
[1747241645930,0.2901977,103370.0,103360.0,0.1934694]
[1747241646237,0.2901977,103370.0,103360.0,0.60345484]
[1747241646422,0.2901977,103370.0,103360.0,0.8344694]
[1747241646628,0.2901977,103370.0,103360.0,1.11740874]
[1747241646829,0.2901977,103370.0,103360.0,0.9312233]
[1747241647124,0.2901977,103370.0,103360.0,1.11740874]
[1747241647927,0.2901977,103370.0,103360.0,1.13171195]
[1747241648128,0.2901977,103370.0,103360.0,1.13371195]
[1747241649637,0.2901977,103370.0,103360.0,1.49451195]
[1747241649937,0.3493661,103380.0,103370.0,0.1934506]
[1747241650137,0.3493661,103380.0,103370.0,0.63503604]
[1747241650433,0.4140661,103380.0,103370.0,0.99583604]
[1747241650639,0.3395284,103380.0,103370.0,0.99583604]
[1747241651236,0.3405284,103380.0,103370.0,0.4488506]
[1747241651443,0.4062284,103380.0,103370.0,0.63503604]
[1747241651938,0.7670284,103380.0,103370.0,0.44158544]
[1747241652239,0.7670284,103380.0,103370.0,0.2554]
[1747241653141,0.7670284,103380.0,103370.0,0.4488506]
[1747241654936,0.7670284,103380.0,103370.0,0.63503604]
[1747241656943,0.7670284,103380.0,103370.0,0.2554]
[1747241657343,0.7670284,103380.0,103370.0,0.2232]
[1747241657534,0.7670284,103380.0,103370.0,0.1922]
[1747241657535,1.10321384,103380.0,103370.0,0.1922]
[1747241658040,1.10321384,103380.0,103370.0,0.162]
[1747241658236,1.31321384,103380.0,103370.0,0.162]
[1747241658444,1.40994984,103380.0,103370.0,0.162]
[1747241659143,0.1934506,103370.0,103360.0,0.4484]
[1747241659332,0.6504506,103370.0,103360.0,0.4484]
[1747241659829,0.1934694,103360.0,103350.0,0.06633508]
[1747241660032,0.6184694,103360.0,103350.0,0.06603508]
[1747241660242,0.6184694,103360.0,103350.0,0.22803508]
[1747241660444,0.6184694,103360.0,103350.0,0.42152318]
[1747241660743,0.6184694,103360.0,103350.0,0.45412318]
[1747241660946,0.6184694,103360.0,103350.0,0.26063508]
[1747241661237,0.6184694,103360.0,103350.0,0.26263508]
[1747241661541,0.6184694,103360.0,103350.0,0.26463508]
[1747241661837,0.6194694,103360.0,103350.0,0.45612318]
[1747241662042,0.6194694,103360.0,103350.0,0.64030862]
[1747241662235,0.6204694,103360.0,103350.0,0.64030862]
[1747241662433,0.63028829,103360.0,103350.0,0.44682052]
[1747241662639,0.63028829,103360.0,103350.0,0.45412318]
[1747241663542,0.63028829,103360.0,103350.0,0.22803508]
[1747241664041,0.63028829,103360.0,103350.0,0.19543508]
[1747241664344,0.67028829,103360.0,103350.0,0.19543508]
[1747241664545,0.67028829,103360.0,103350.0,0.38892318]
[1747241664741,0.67028829,103360.0,103350.0,0.57510862]
[1747241665043,0.2596694,103360.0,103350.0,0.60840862]
[1747241665638,0.6204694,103360.0,103350.0,0.60840862]
[1747241666344,0.2596694,103360.0,103350.0,0.79459406]
[1747241666545,0.2596694,103360.0,103350.0,1.06596252]
[1747241667045,0.2596694,103360.0,103350.0,0.70516252]
[1747241667842,0.2576694,103360.0,103350.0,0.70616252]
[1747241668043,0.2576694,103360.0,103350.0,0.70716252]
[1747241674649,0.2576694,103360.0,103350.0,0.71278323]
[1747241679952,0.2576694,103360.0,103350.0,0.51929513]
[1747241680144,0.6184694,103360.0,103350.0,0.42984389]
[1747241680451,0.6184694,103360.0,103350.0,0.61602933]
[1747241680842,0.6184694,103360.0,103350.0,0.61502933]
[1747241681049,0.6204694,103360.0,103350.0,0.61402933]
[1747241681748,0.5562694,103360.0,103350.0,0.61402933]
[1747241682145,0.2271694,103360.0,103350.0,0.61402933]
[1747241682345,0.1954694,103360.0,103350.0,0.71078323]
[1747241682750,0.1954694,103360.0,103350.0,0.89696867]
[1747241683055,0.1954694,103360.0,103350.0,1.25776867]
[1747241683243,0.1944694,103360.0,103350.0,1.25876867]
[1747241684352,0.4013659,103370.0,103360.0,0.1934694]
[1747241684547,0.3702659,103370.0,103360.0,0.83135484]
[1747241684746,0.3702659,103370.0,103360.0,0.83559484]
[1747241685145,0.3702659,103370.0,103360.0,0.99759484]
[1747241685656,0.6835682,103380.0,103370.0,0.1934506]
[1747241685855,0.7147682,103380.0,103370.0,0.44033604]
[1747241686051,0.7147682,103380.0,103370.0,0.60233604]
[1747241686752,0.7147682,103380.0,103370.0,0.60333604]
[1747241687653,0.7147682,103380.0,103370.0,0.60433604]
[1747241688557,0.7147682,103380.0,103370.0,0.1944]
[1747241688558,0.7547682,103380.0,103370.0,0.1944]
[1747241689156,0.7547682,103380.0,103370.0,0.1934]
[1747241689353,0.7557682,103380.0,103370.0,0.1934]
[1747241689851,0.3949682,103380.0,103370.0,0.1934]
[1747241690158,0.7557682,103380.0,103370.0,0.1934]
[1747241690359,0.7567682,103380.0,103370.0,0.1924]
[1747241690957,0.7567682,103380.0,103370.0,0.19802071]
[1747241692253,1.0267682,103380.0,103370.0,0.19802071]
[1747241693559,1.0267682,103380.0,103370.0,0.41530615]
[1747241694362,1.0267682,103380.0,103370.0,0.22912071]
[1747241694659,1.0267682,103380.0,103370.0,0.19802071]
[1747241699259,1.21295364,103380.0,103370.0,0.16762071]
[1747241700367,1.0267682,103380.0,103370.0,0.16762071]
[1747241700868,1.0267682,103380.0,103370.0,0.19922071]
[1747241704966,1.0267682,103380.0,103370.0,0.20347071]
[1747241709064,0.7267682,103380.0,103370.0,0.26617071]
[1747241709265,0.7167682,103380.0,103370.0,0.26617071]
[1747241709570,0.7367682,103380.0,103370.0,0.26617071]
[1747241714572,0.7367682,103380.0,103370.0,0.64580675]
[1747241714573,0.6400319,103380.0,103370.0,0.64580675]
[1747241714768,0.2280319,103380.0,103370.0,0.64580675]
[1747241714967,0.2593319,103380.0,103370.0,1.00660675]
[1747241715476,0.2593319,103380.0,103370.0,0.64580675]
[1747241715777,0.2583319,103380.0,103370.0,0.64680675]
[1747241715980,0.1954319,103380.0,103370.0,1.00760675]
[1747241717976,0.1944319,103380.0,103370.0,1.00760675]
[1747241718177,0.1944319,103380.0,103370.0,1.00860675]
[1747241722271,0.1944319,103380.0,103370.0,1.10534193]
[1747241722678,0.1944319,103380.0,103370.0,0.91915649]
[1747241722875,0.1944319,103380.0,103370.0,1.10534193]
[1747241727695,0.39092768,103380.0,103370.0,1.10534193]
[1747241730397,0.39092768,103380.0,103370.0,0.74454193]
[1747241730587,0.78392768,103380.0,103370.0,0.46162131]
[1747241730791,0.81542768,103380.0,103370.0,0.64780675]
[1747241733584,0.79093637,103380.0,103370.0,0.64780675]
[1747241736598,0.43013637,103380.0,103370.0,0.64780675]
[1747241737402,0.35642017,103380.0,103370.0,0.64780675]
[1747241742595,0.35642017,103380.0,103370.0,0.74454193]
[1747241742803,0.32422017,103380.0,103370.0,0.74454193]
[1747241743407,0.32422017,103380.0,103370.0,0.68023281]
[1747241744006,0.35642017,103380.0,103370.0,0.68023281]
[1747241744803,0.35642017,103380.0,103370.0,0.55835649]
[1747241745017,0.35642017,103380.0,103370.0,0.68023281]
[1747241745598,0.38832017,103380.0,103370.0,0.68023281]
[1747241746110,0.38832017,103380.0,103370.0,0.30220589]
[1747241746305,0.74912017,103380.0,103370.0,0.39892131]
[1747241748198,0.77912017,103380.0,103370.0,0.39892131]
[1747241750213,0.77912017,103380.0,103370.0,0.58467531]
[1747241750411,0.77912017,103380.0,103370.0,0.61477531]
[1747241752009,0.77912017,103380.0,103370.0,0.42902131]
[1747241752206,0.77912017,103380.0,103370.0,0.61477531]
[1747241752508,0.77912017,103380.0,103370.0,0.42902131]
[1747241752916,0.77912017,103380.0,103370.0,0.20547071]
[1747241753321,1.25487417,103380.0,103370.0,0.17387071]
[1747241753611,1.13367315,103380.0,103370.0,0.17387071]
[1747241753816,0.88367315,103380.0,103370.0,0.20507071]
[1747241755502,0.88367315,103380.0,103370.0,0.17387071]
[1747241755809,0.81367315,103380.0,103370.0,0.17387071]
[1747241756010,1.12367315,103380.0,103370.0,0.20647071]
[1747241756215,0.93367315,103380.0,103370.0,0.20647071]
[1747241758311,0.88783823,103380.0,103370.0,0.20647071]
[1747241758518,0.88783823,103380.0,103370.0,0.39992131]
[1747241758708,0.88783823,103380.0,103370.0,0.23867071]
[1747241759517,0.76783823,103380.0,103370.0,0.61787531]
[1747241759706,0.37513823,103380.0,103370.0,0.71461049]
[1747241759907,0.31143823,103380.0,103370.0,0.71461049]
[1747241760717,0.31143823,103380.0,103370.0,1.07541049]
[1747241762220,0.37173823,103380.0,103370.0,1.07541049]
[1747241763212,0.11800633,103380.0,103370.0,1.07541049]
[1747241763612,0.17316456,103380.0,103370.0,1.07541049]
[1747241763816,0.17316456,103380.0,103370.0,1.67836449]
[1747241764213,0.17316456,103380.0,103370.0,3.17836449]
[1747241765721,0.17316456,103380.0,103370.0,3.27510049]
[1747241766514,0.36659646,103380.0,103370.0,3.08934649]
[1747241766715,0.17316456,103380.0,103370.0,3.08934649]
[1747241767615,0.17316456,103380.0,103370.0,3.27510049]
[1747241768324,0.17316456,103380.0,103370.0,3.08934649]